Workbook

Sheet Übersicht
G2: letzte Änderung: 14.12.2017
B3: Umweltbundesamt (UBA), Fachgebiet IV 1.3 - Pflanzenschutzmittel, Wörlitzer Platz 1, D-06844 Dessau-Roßlau
B4: E-Mail Kontakt: einvernehmensstelle.pflschg@uba.de
B5: Bitte als Referenz angeben: | D5: EXPOSIT 3.02, Umweltbundesamt. In:
B6: http://www.bvl.bund.de/DE/04_Pflanzenschutzmittel/03_Antragsteller/04_Zulassungsverfahren/07_Naturhaushalt/psm_naturhaush_node.html
B7: Simulationsmodell "Exposit 3.02"
B8: Abschätzung des Eintrages von PSM-Wirkstoffen in Oberflächengewässer über den Pfad Run-off und Drainage sowie des Risikos
B9: 1. einer Gefährdung des Grundwassers über anschließende Uferfiltration
B10: 2. für aquatische Organismen im Oberflächengewässer
B11: EXPOSIT 3.02 wird für die nationale Bewertung im Zulassungsverfahren von Pflanzenschutzmitteln herangezogen. Änderungen in Version 3.02 In der überarbeitete Programmversion wurde die Unterscheidung zwischen KocRunoffaustrag KocGefährungsklasse aufgehoben. Der einzustellende Koc-Wert sowohl für den Runoffaustrag als auch für die Einstufung in die Gefährdungsklasse orientiert sich an der EU Wirkstoffprüfung. Dabei wird der in der LoEP angegebene arithmetische bzw. geometrische Mittelwert verwendet. Falls neue Sorptionsdaten vorliegen, welche noch nicht im EU Verfahren bewertet wurden, ist ein "data matching" durchzuführen. Wird dabei die Relevanz der neuen Daten aufgezeigt, so sind diese in die Mittelwertbildung mit einzubeziehen. In diesem Fall ist immer das geometrische Mittel zu verwenden.
B12: Die neue Programmversion EXPOSIT 3.02 kann ab sofort für die Dossiererstellung im Zulassungsverfahren für Pflanzenschutzmittel verwendet werden. Für Anträge, die ab dem 01. 08.2018 gestellt werden, ist EXPOSIT 3.02 verbindlich.
C17: Programmanleitung
C18: Programmstart: Achtung Sicherheitswarnung Microsoft - ggfs. Makros aktivieren!
C20: Eingabeparameter
B21: ► | C21: Blatt "Exposit": | E21: p
C23: Parameter | D23: Default | F23: Optionen | G23: Auswirkungen auf das Ergebnis
C24: Allgemeine Daten
B26: ► | C26: Wirkstoff | D26: „anderer Wirkstoff“ | F26: ausgewählte Wirkstoffe | G26: - Verwendung substanzspezifischer Eliminationsraten bei der Uferfiltration
C27: Stoffdaten
C28: Die Stoffdaten werden zur Einstufung des Wirkstoffs in die Gefährdungsgruppen I bis IV herangezogen. Gleichzeitig gehen einige Daten in die Expositionsberechnung ein.
C29: LH2O (mg/L) | D29: Wasserlöslichkeit | F29: gemäß PC-Daten KIIA 2.6 | G29: - Auswahl der Gefährdungsgruppe Grundwasser
C30: DT50 (d) | D30: Labor (20°C, pF2, SFO):
D31: Wirkstoff: | E31: n ≥ 4: 90. Perzentil | F31: Freiland (nicht normalisiert): | G31: - Auswahl der Gefährdungsgruppe Grundwasser
E32: n < 4: Maximum | F32: worst case DT50 | G32: - bestimmt Abbau des Wirkstoffs bis zum Regenereignis
D33: Metabolit: | E33: n ≥ 3: 90. Perzentil | F33: (DE repräsentative Standorte)
C35: Koc (L/kg) | D35: EU Endpunkt (arithmetisches oder geometrisches Mittel) | F35: Ggf. neue Daten berücksichtigen, falls relevant laut "data matching", dann geometrisches Mittel | G35: - Expositionsberechnung: bestimmt Wirkstoffaustrag via Runoff bzw. Erosion - Auswahl der Gefährdungsgruppe Grundwasser
B36: ► | C36: Gefährdungsgruppe | D36: Konzept siehe Blatt "Gefährdungsgruppe" | G36: - bestimmt Eliminationsrate der Uferfiltration (default Wirkstoffe)
G37: - bestimmt Wirkstoffaustrag via Drainage
C38: Anwendung
C40: AWM a.i. (g/ha) | D40: Einfachanwendung: | F40: - | G40: - bestimmt bodenverfügbare Wirkstoffmenge
D41: Aufwandmenge der einfachen Anwendung
C42: Mehrfachapplikation (g/ha) | D42: Mehrfachanwendung:
D43: Maximal auftretender Rückstand unter Berücksichtigung des Abbaus
C44: Interzeption (%) | D44: gemäß FOCUS Grundwasser | F44: kann zwischen den Anwendungszeitpunkten variieren | G44: - bestimmt bodenverfügbare Wirkstoffmenge abhängig von Kulturart und Entwicklungsstadium
C45: Intervall (d) | D45: - | F45: Berücksichtigung von 1 bis 10 Anwendungen des Wirkstoffs pro Jahr | G45: - bestimmt bodenverfügbare Wirkstoffmenge
G46: - berücksichtigt Wirkstoffabbau zwischen den Einzelapplikationen
C48: Ökotoxikologische Daten
C50: Wert (µg/L) | D50: niedrigster bewertungsrelevanter Effektwert für die empfindlichste aquatische Spezies oder Lebensgemeinschaft | F50: - µg/L (Runoff) für Auswirkungen auf Fische, Algen oder höhere Wasserpflanzen bei Einträgen via Runoff (an erodierte Bodenpartikel gebundene Wirkstoffanteile werden als nicht verfügbar angesehen) | G50: - Die TER-Berechnung für Einträge via Runoff erfolgt auf der Basis der PEC ini Runoff.
F53: - µg/L (Gesamtaustrag) für Auswirkungen auf Invertebraten bei Einträgen via Runoff (an erodierte Bodenpartikel gebundene Wirkstoffanteile werden als potenziell verfügbar angesehen) | G53: - Die TER-Berechnung für Einträge via Runoff erfolgt auf der Basis der PEC ini Gesamtaustrag. Es kann die PEC ini Runoff verwendet werden, wenn eine signifikant verringerte Verfügbarkeit und ökotoxikologische Wirksamkeit an Partikel gebundener Wirkstoffanteile im Einzelfall belegt werden kann. Bei Wirkstoffen mit einem Koc > 50000 kann eine hinreichend verringerte Verfügbarkeit ohne weitere Prüfung angenommen werden.
F54: - µg/L (Runoff/Gesamtaustrag) Auswahl nicht relevant für die Bewertung von Einträgen via Drainage
C55: TER | D55: abhängig von Spezies und Endpunkt | F55: -
C56: Szenario
C58: Niederschlag nach (d) | D58: 3 d | F58: Granulate: 0 d Metaboliten: 0 d | G58: - bestimmt bodenverfügbare Wirkstoffmenge - berücksichtigt Wirkstoffabbau bis zum Regenereignis
C59: Austrag in (%) der AWM über Runoff | D59: Koc abhängiger Anteil der bodenverfügbaren Wirkstoffmenge, der über Runoff ausgetragen wird | F59: - | G59: - bestimmt wasserverfügbaren Wirkstoffanteil im Oberflächengewässer
C60: Austrag in (%) der AWM über Erosion | D60: Koc abhängiger Anteil der bodenverfügbaren Wirkstoffmenge, der über Erosion ausgetragen wird | F60: - | G60: -
C62: Bewertungsansatz
B63: ► | C63: Eintragspfad Runoff und Erosion
B64: ► | C64: Eintragspfad Drainage
B65: ► | C65: Eintragspfad Uferfiltration
B66: ► | C66: Metabolite
B68: ► | C68: Blatt "Berechnung": Übersicht der zu Grunde liegenden Formeln

Sheet Exposit
A1: ◄ | B1: Allgemeine Daten | J1: Anwendung
B2: ZA-Nr. | J2: 1 | N2: Anwendung pro Jahr (max.10) | O2: 4
B3: PSM | J3: AWM a.i. (g/ha) | L3: 900 | N3: Intervall (d) | O3: 14 | Q3: Anwendung: | R3: 1 | S3: 2 | T3: 3 | U3: 4 | V3: 5 | W3: 6 | X3: 7 | Y3: 8 | Z3: 9 | AA3: 10
B4: Wirkstoff | C4: 14 | J4: Interzeption (%) | L4: 70 | N4: DT50 (d) | O4: =C9 -> 121 | Q4: AWM a.i. (g/ha) | R4: 500 | S4: 500 | T4: 500 | U4: 500 | V4: 0 | W4: 0 | X4: 0 | Y4: 0 | Z4: 0 | AA4: 0
N5: Maximal Rückstand (g/ha) | O5: =MAX(Mehrfachapplikation!C16:L16) -> 512.7503514 | Q5: Interzeption (%): | R5: 50 | S5: 70 | T5: 70 | U5: 90 | V5: 0 | W5: 0 | X5: 0 | Y5: 0 | Z5: 0 | AA5: 0
B7: Stoffdaten | E7: =IF(C11=1,"Grundwassergefährdungspotential gering",IF(C11=2,"Grundwassergefährdung gegeben",IF(C11=3,"Grundwassergefährdung möglich ","Grundwassergefährdungspotential gering"))) -> Grundwassergefährdungspotential gering | J7: Ökotoxikologische Daten | O7: Interzeption berücksichtigt
B8: Koc (L/kg) | C8: 3000 | E8: >>500 | F8: <500 | G8: <<500 | H8: <100 | J8: Spezies | AG8: µg/L (Runoff)
B9: DT50 (d) | C9: 121 | E9: >100 | F9: >21 | G9: <21> | H9: <<21 | J9: Wert | K9: 1 | L9: 3 | AG9: µg/L (Gesamtaustrag)
B10: L H20 (mg/L) | C10: 2 | E10: <1 | F10: <100 | G10: >>100 | H10: >>100 | J10: TER | L10: 3
B11: Gefährdungsgruppe | C11: 1 | E11: 1 | F11: 2 | G11: 3 | H11: 4
B12: ≈ Eliminationsrate (%) | C12: =INDEX('Konzept Uferfiltration'!H23:H37,Exposit!C4) -> 100 | J12: Szenario
J13: Niederschlag nach (d) | L13: 3 | M13: =IF(L13=3," ","Achtung! Entspricht nicht Standardeinstellung!") -> 
C14: f | D14: =IF(C12=75," ",IF(C12=90," ",IF(C12=100," ",IF(C12="","","Achtung!")))) ->  | J14: Austrag in (%) der AWM über Runoff | L14: ='Konzept Runoff'!J33 -> 0.084
D15: =IF(C12=75," ",IF(C12=90," ",IF(C12=100," ",IF(C12="","","Entspricht nicht Standardeinstellung!")))) ->  | J15: Austrag in (%) der AWM über Erosion | L15: ='Konzept Runoff'!K33 -> 0.091
C17: Runoff und Erosion
C18: Randstreifen (m) | E18: 0 | F18: 5 | G18: 10 | H18: 20
C19: Reduktion Runoffaustrag (%) | E19: 0 | F19: 40 | G19: 60 | H19: 80
C20: Reduktion Erosionsaustrag (%) | E20: 0 | F20: 40 | G20: 85 | H20: 95
C21: Austrag Wasser (m3) | E21: =100*(1-E19) -> 100 | F21: =100*(1-F19/100) -> 60 | G21: =100*(1-G19/100) -> 40 | H21: =100*(1-H19/100) -> 20
C22: Grabenwasser (m3) | E22: =E21+30 -> 130 | F22: =F21+30 -> 90 | G22: 70 | H22: =H21+30 -> 50
C23: VerdünnungGraben (m3) | E23: =E22*2 -> 260 | F23: =F22*2 -> 180 | G23: 140 | H23: =H22*2 -> 100
C25: Rückstand zum Zeitpunkt des Niederschlagsereignisses (g/ha) | K25: Drainage
E26: =IF(J2>1,(O5)*EXP(-(LN(2)/C9)*L13),IF(J2=1,(L3*(100-(L4))/100)*EXP(-(LN(2)/C9)*L13))) -> 265.3995673 | K26: Frühjahr | L26: Herbst
C27: Runoff (mg) | E27: =$E$26*$L$14/100*1000*(1-E19/100) -> 222.9356366 | F27: =$E$26*$L$14/100*1000*(1-F19/100) -> 133.7613819 | G27: 89.17425463 | H27: 44.58712731 | K27: - Sommer | L27: - Winter
C28: Erosion (mg) | E28: =$E$26*$L$15/100*1000*(1-E20/100) -> 241.5136063 | F28: =$E$26*$L$15/100*1000*(1-F20/100) -> 144.9081638 | G28: 36.22704094 | H28: 12.07568031 | K28: (April - Oktober) | L28: (November- März)
B30: Grundwasser | C30: PEC ini Runoff (µg/L) | E30: =(E27)/E23 -> 0.8574447561 | F30: =(F27)/F23 -> 0.7431187886 | G30: 0.6369589616 | H30: 0.4458712731 | J30: PEC ini Graben (µg/L) | K30: =IF(C11=1,'Konzept Drainage'!H35,'Konzept Drainage'!H43) -> 0.0414686824 | L30: =IF(C11=1,'Konzept Drainage'!Q35,'Konzept Drainage'!Q43) -> 0.1275959458
C31: PEC ini Fließgewässer (µg/L) | E31: =E30/12.5 -> 0.06859558048 | F31: =F30/12.5 -> 0.05944950309 | G31: 0.05095671693 | H31: 0.03566970185 | J31: PEC ini Fließgewässer (µg/L) | K31: =K30/12.5 -> 0.003317494592 | L31: =L30/12.5 -> 0.01020767567
C32: PEC ini Uferfiltrat (µg/L) | E32: =IF(AND($C$12="eingeben:",$C$14=""),"Fehler!",IF('Konzept Uferfiltration'!$K$23="andere Eliminationsrate",E31*(100-$C$14)/100,E31*(100-$C$12)/100)) -> 0 | F32: =IF(AND($C$12="eingeben:",$C$14=""),"Fehler!",IF('Konzept Uferfiltration'!$K$23="andere Eliminationsrate",F31*(100-$C$14)/100,F31*(100-$C$12)/100)) -> 0 | G32: =IF(AND($C$12="eingeben:",$C$14=""),"Fehler!",IF('Konzept Uferfiltration'!$K$23="andere Eliminationsrate",G31*(100-$C$14)/100,G31*(100-$C$12)/100)) -> 0 | H32: =IF(AND($C$12="eingeben:",$C$14=""),"Fehler!",IF('Konzept Uferfiltration'!$K$23="andere Eliminationsrate",H31*(100-$C$14)/100,H31*(100-$C$12)/100)) -> 0 | J32: PEC ini Uferfiltrat (µg/L) | K32: =IF(AND(C12="eingeben:",C14=""),"Fehler!",IF('Konzept Uferfiltration'!K23="andere Eliminationsrate",K31*(100-$C$14)/100,K31*(100-$C$12)/100)) -> 0 | L32: =IF(AND(D13="eingeben:",D14=""),"Fehler!",IF('Konzept Uferfiltration'!L23="andere Eliminationsrate",L31*(100-$C$14)/100,L31*(100-$C$12)/100)) -> 0
E33: =IF(E32="Fehler!","",IF(E32>=0.1,"> 0.1 µg/l","ok")) -> ok | F33: =IF(F32="Fehler!","",IF(F32>=0.1,"> 0.1 µg/l","ok")) -> ok | G33: =IF(G32="Fehler!","",IF(G32>=0.1,"> 0.1 µg/l","ok")) -> ok | H33: =IF(H32="Fehler!","",IF(H32>=0.1,"> 0.1 µg/l","ok")) -> ok | K33: =IF(K32="Fehler!","",IF(K32>=0.1,"> 0.1 µg/l","ok")) -> ok | L33: =IF(L32="Fehler!","",IF(L32>=0.1,"> 0.1 µg/l","ok")) -> ok
B35: Aquatische Biozönose | C35: PEC ini Runoff (µg/L) | E35: =E27/E23 -> 0.8574447561 | F35: =F27/F23 -> 0.7431187886 | G35: =G27/G23 -> 0.6369589616 | H35: =H27/H23 -> 0.4458712731 | J35: PEC ini Graben (µg/L) | K35: =K30 -> 0.0414686824 | L35: =L30 -> 0.1275959458
C36: TER Graben | E36: =$L$9/E35 -> 3.49876768 | F36: =$L$9/F35 -> 4.037039631 | G36: 4.709879569 | H36: 6.728399385 | J36: TER Graben | K36: =$L$9/K30 -> 72.34375019 | L36: =$L$9/L30 -> 23.51171881
E37: =IF(AND(E36<$L$10,$L$10=100),"<100",IF(AND(E36<$L$10,$L$10=10),"<10",IF(E36<$L$10,$L$10,"ok"))) -> ok | F37: =IF(AND(F36<$L$10,$L$10=100),"<100",IF(AND(F36<$L$10,$L$10=10),"<10",IF(F36<$L$10,$L$10,"ok"))) -> ok | G37: =IF(AND(G36<$L$10,$L$10=100),"<100",IF(AND(G36<$L$10,$L$10=10),"<10",IF(G36<$L$10,$L$10,"ok"))) -> ok | H37: =IF(AND(H36<$L$10,$L$10=100),"<100",IF(AND(H36<$L$10,$L$10=10),"<10",IF(H36<$L$10,$L$10,"ok"))) -> ok | K37: =IF(AND(K36<$L$10,$L$10=100),"<100",IF(AND(K36<$L$10,$L$10=10),"<10",IF(K36<$L$10,$L$10,"ok"))) -> ok | L37: =IF(AND(L36<$L$10,$L$10=100),"<100",IF(AND(L36<$L$10,$L$10=10),"<10",IF(L36<$L$10,$L$10,"ok"))) -> ok | N37: =IF(OR(E36<L10,F36<L10,G36<L10,H36<L10,K36<L10,L36<L10),"Achtung! "," ") -> 
N38: =IF(OR(E36<L10,F36<L10,G36<L10,H36<L10,K36<L10,L36<L10),"Bewertungsrelevanter TER unterschritten!"," ") -> 
C39: PEC ini Gesamtaustrag (µg/L) | E39: =(E27+E28)/E23 -> 1.786343242 | F39: =(F27+F28)/F23 -> 1.548164143 | G39: =(G27+G28)/G23 -> 0.8957235398 | H39: =(H27+H28)/H23 -> 0.5666280763
C40: TER Graben | E40: =$L$9/E39 -> 1.679408486 | F40: =$L$9/F39 -> 1.937779023 | G40: 3.349247694 | H40: 5.294478205
E41: =IF(AND(E40<$L$10,$L$10=100),"<100",IF(AND(E40<$L$10,$L$10=10),"<10",IF(E40<$L$10,L10,"ok"))) -> 3 | F41: =IF(AND(F40<$L$10,$L$10=100),"<100",IF(AND(F40<$L$10,$L$10=10),"<10",IF(F40<$L$10,$L$10,"ok"))) -> 3 | G41: =IF(AND(G40<$L$10,$L$10=100),"<100",IF(AND(G40<$L$10,$L$10=10),"<10",IF(G40<$L$10,$L$10,"ok"))) -> ok | H41: =IF(AND(H40<$L$10,$L$10=100),"<100",IF(AND(H40<$L$10,$L$10=10),"<10",IF(H40<$L$10,$L$10,"ok"))) -> ok | J41: =IF(OR(E40<L10,F40<L10,G40<L10,H40<L10),"Achtung!"," ") -> Achtung!
J42: =IF(OR(E40<L10,F40<L10,G40<L10,H40<L10),"Bewertungsrelevanter TER unterschritten!"," ") -> Bewertungsrelevanter TER unterschritten!

Sheet Report
B3: für NA Section 8
B5: Use No. | C5: Application rate / interception | D5: PECgw due to
D6: Runoff | F6: Drainage
D7: Vegetated buffer strip (m) | E7: Bank filtrate (µg/L) | F7: Time of application | G7: Bank filtrate (µg/L)
D9: 0 | E9: =Exposit!E32 -> 0 | F9: spring/summer | G9: =Exposit!K32 -> 0
D10: 5 | E10: =Exposit!F32 -> 0
D11: 10 | E11: =Exposit!G32 -> 0 | F11: autumn/winter/ | G11: =Exposit!L32 -> 0
D12: 20 | E12: =Exposit!H32 -> 0 | F12: early spring
B13: Required labelling | D13: …
B18: für NA Section 9
B19: Fall1: Bewertung auf Runoff | F19: Fall2: Bewertung auf Gesamtaustrag
B20: Runoff | F20: Runoff + erosion
B21: Buffer zone (m) | C21: PEC (µg/L) | D21: TER | F21: Buffer zone (m) | G21: PEC (µg/L) | H21: TER
B22: 0 | C22: =Exposit!E35 -> 0.8574447561 | D22: =Exposit!E36 -> 3.49876768 | F22: 0 | G22: =Exposit!E39 -> 1.786343242 | H22: =Exposit!E40 -> 1.679408486
B23: 5 | C23: =Exposit!F35 -> 0.7431187886 | D23: =Exposit!F36 -> 4.037039631 | F23: 5 | G23: =Exposit!F39 -> 1.548164143 | H23: =Exposit!F40 -> 1.937779023
B24: 10 | C24: =Exposit!G35 -> 0.6369589616 | D24: =Exposit!G36 -> 4.709879569 | F24: 10 | G24: =Exposit!G39 -> 0.8957235398 | H24: =Exposit!G40 -> 3.349247694
B25: 20 | C25: =Exposit!H35 -> 0.4458712731 | D25: =Exposit!H36 -> 6.728399385 | F25: 20 | G25: =Exposit!H39 -> 0.5666280763 | H25: =Exposit!H40 -> 5.294478205
B26: Drainage | F26: Drainage
B27: Time of application | C27: PEC (µg/L) | D27: TER | F27: Time of application | G27: PEC (µg/L) | H27: TER
B28: Spring/summer | C28: =Exposit!K35 -> 0.0414686824 | D28: =Exposit!K36 -> 72.34375019 | F28: Spring/summer | G28: =Exposit!K35 -> 0.0414686824 | H28: =Exposit!K36 -> 72.34375019
B29: Autumn/winter | C29: =Exposit!L35 -> 0.1275959458 | D29: =Exposit!L36 -> 23.51171881 | F29: Autumn/winter | G29: =Exposit!L35 -> 0.1275959458 | H29: =Exposit!L36 -> 23.51171881

Sheet 90. Perz
A1: Berechnung des 90. Perzentils der DT50-Werte (nur zu verwenden bei Laborstudien und entsprechender Datenzahl, siehe Übersicht)
A2: DT50
B3: 90. Perzentil: | C3: =IF(A3="","",PERCENTILE(A:A, 0.9)) -> 

Sheet Metabolit
A1: ◄
B2: Berechnung AWM für Metaboliten
C4: Wirkstoff | D4: Metabolit
B5: Molare Masse (g/mol) | C5: 416.3 | D5: 209.1
B6: Mol Korrekturfaktor | D6: =D5/C5 -> 0.5022820082
B7: Maximale Bildungsrate (%) | D7: 100
B8: AWM a.i. (g/ha) | C8: 100 | D8: =D5/C5*C8*(D7/100) -> 50.22820082
B10: Hinweis:
B11: - Zu betrachten sind die potentiell relevanten Metaboliten aus Bodenabbaustudien, d. h. Metaboliten mit maximaler Bildung von > 10 %, 2 x > 5% (aufeinanderfolgend) und Metaboliten, die zum Testende ansteigen und zu diesem Zeitpunkt > 5 % betragen.
B12: - Die maximalen Bildungsraten für die einzelnen Metaboliten werden zur Korrektur der bodenverfügbaren AWM des Metaboliten verwendet.
B13: - In Exposit ist für den Eintritt des Regenereignisses der default-Wert von 3 d auf 0 d zu setzen, da der zeitliche Abstand zwischen Bildung des Metaboliten und Eintritt des Regenereignisses nicht bestimmbar ist.

Sheet Konzept Runoff
A1: ◄
B2: Bewertungskonzept Runoff
B4: Schlaggröße/
B5: Applikationsfläche: | D5: 1 ha (100 m * 100 m)
B7: Zeitraum zwischen | D7: 3 d (default)
B8: Applikation und
B9: Regenereignis
B11: Mehrfachapplikation | D11: Für das Runoff-auslösendene Niederschlagsereignis wird angenommen, das es bei Mehrfachapplikation erst nach der letzten Applikation auftritt.
D12: Der Abbau im Boden zwischen den Einzelanwendungen wird berücksichtigt (SFO Kinetik).
B14: Niederschlag: | D14: Ergiebiger Regen von 20 mm innerhalb von 24 h (200 m3); davon 9 mm als sog. Berechnungsregen (Starkregen von 100 L/(s x ha); 15 min Regendauer; Häufigkeit einmal pro Jahr), um auch partikelgebundene Wirkstoffe aus der Behandlungsfläche auszutragen.
B15: Wasserabfluss: | D15: Runoff: 50 % des Niederschlags (10 mm, 100 m3)
B17: Austrag: (Stoßbelastung) | D17: Sämtliche Böden kleiner Korngrößen (Löß, Marschböden), grundwassernahe und verdichtete Böden neigen auch im ebenen / fast ebenem Gelände zu Runoff. Für die Runoff-gefährdeten Flächen kann im worst case ein konstanter, standortunabhängiger Wirkstofftransport angenommen werden.
D18: Prozentualer Austrag der applizierten Wirkstoffmenge bei Stoßbelastung. Die Austragsfaktoren werden nach Reichenberger et al. (2007) unterschieden in Austräge über Runoff (gelöste Phase) und Erosion (partikelgebundene Phase). Eine weitere Unterteilung der probabilistischen PRZM-Modellierungsergebnisse erfolgt über die ermittelte Abhängigkeit zwischen Verfügbarkeit von Wirkstoffen im Boden und Koc. Dabei geht die Runoff-Verfügbarkeit mit steigender Sorption zurück, d.h. der Wirkstoffanteil in der gelösten Phase sinkt. Im Gegensatz zum Runoffaustrag nehmen die Erosionsausträge mit steigendem Koc stetig zu. Die Trennung der Eintragspfade Runoff und Erosion wird anhand von 12 Koc-Klassen unter Verwendung des 90. Perzentils der maximal täglichen Runoff- sowie Erosionsausträge vorgenommen:
E19: Austrag in % der Aufwandmenge
D20: Koc-Klasse in L/kg | E20: Runoff | F20: Erosion | G20: (Gesamt)
D21: 0-20 | E21: 0.11 | F21: 0 | G21: =E21+F21 -> 0.11 | I21: =IF(Exposit!C8<=20,1,0) -> 0 | J21: =I21*E21 -> 0 | K21: =I21*F21 -> 0
D22: >20-50 | E22: 0.151 | F22: 0 | G22: =E22+F22 -> 0.151 | I22: =IF(AND(Exposit!$C$8>20,Exposit!$C$8<=50),1,0) -> 0 | J22: =I22*E22 -> 0 | K22: =I22*F22 -> 0
D23: >50-100 | E23: 0.197 | F23: 0 | G23: 0.197 | I23: =IF(AND(Exposit!$C$8>50,Exposit!$C$8<=100),1,0) -> 0 | J23: 0 | K23: 0
D24: >100-200 | E24: 0.248 | F24: 0.001 | G24: 0.249 | I24: =IF(AND(Exposit!$C$8>100,Exposit!$C$8<=200),1,0) -> 0 | J24: 0 | K24: 0
D25: >200-500 | E25: 0.224 | F25: 0.004 | G25: 0.228 | I25: =IF(AND(Exposit!$C$8>200,Exposit!$C$8<=500),1,0) -> 0 | J25: 0 | K25: 0
D26: >500-1000 | E26: 0.184 | F26: 0.02 | G26: 0.204 | I26: =IF(AND(Exposit!$C$8>500,Exposit!$C$8<=1000),1,0) -> 0 | J26: 0 | K26: 0
D27: >1000-2000 | E27: 0.133 | F27: 0.042 | G27: 0.175 | I27: =IF(AND(Exposit!$C$8>1000,Exposit!$C$8<=2000),1,0) -> 0 | J27: 0 | K27: 0
D28: >2000-5000 | E28: 0.084 | F28: 0.091 | G28: 0.175 | I28: =IF(AND(Exposit!$C$8>2000,Exposit!$C$8<=5000),1,0) -> 1 | J28: 0.084 | K28: 0.091
D29: >5000-10000 | E29: 0.037 | F29: 0.159 | G29: 0.196 | I29: =IF(AND(Exposit!$C$8>5000,Exposit!$C$8<=10000),1,0) -> 0 | J29: 0 | K29: 0
D30: >10000-20000 | E30: 0.031 | F30: 0.192 | G30: 0.223 | I30: =IF(AND(Exposit!$C$8>10000,Exposit!$C$8<=20000),1,0) -> 0 | J30: 0 | K30: 0
D31: >20000-50000 | E31: 0.014 | F31: 0.291 | G31: 0.305 | I31: =IF(AND(Exposit!$C$8>20000,Exposit!$C$8<=50000),1,0) -> 0 | J31: 0 | K31: 0
D32: >50000 | E32: 0.001 | F32: 0.451 | G32: 0.452 | I32: =IF(Exposit!$C$8>50000,1,0) -> 0 | J32: 0 | K32: 0
J33: =SUM(J21:J32) -> 0.084 | K33: =SUM(K21:K32) -> 0.091
D34: Referenz: Reichenberger, S.; Bach, M.; Frede, H.-G. (2007): Auswertung der prädiktiven PRZM-Simulationen aus Reichenberger (2005) zum Austrag von PSM-Wirkstoffen über Runoff und Erosion in Deutschland. Dokumentation für den Industrieverband Agrar (IVA). Finale Version vom 10.08.2007. Univ. Gießen
B36: Gewässer: | D36: Parallel zur Applikationsfläche verlaufender Graben
D37: Breite: 100 cm; Wassertiefe: 30 cm; Volumen 30 m³; max. Aufnahmevolumen > 130 m³
D38: Während des Niederschlagsereignisses wird ein Fließen des Grabenwassers unterstellt. Angenommen wird hier eine Verdünnung von 1 : 2.
B40: Sediment: | D40: Sedimenttiefe: 0,05 m, Breite: 1 m, Länge: 100 m, Sedimentdichte: 1300 kg/m³
D41: Masse an Sediment: 6500 kg ( = S-Tiefe * S-Breite * S-Länge * S-Dichte)
B43: Randstreifen: | D43: Diffuse Verteilung des Abflusses auf Pufferfläche; dauerhafter und dichter Bewuchs; nicht verdichtet und durch Fahrspuren beeinträchtigt.
D44: Es wird vorausgesetzt, dass schonende Bodenbearbeitung quer zum Hang erfolgt.
D46: Um den Einfluss bewachsener Randstreifen auf die Reduzierung des Oberflächenabflusses und PSM-Einträgen in der Modellierung berücksichtigen zu können, wurden in der Literatur verfügbare europaweite Untersuchungen von der FOCUS "Working Group on Landscape and Mitigation" in Abhängigkeit der Filterlänge und je Eintragspfad statistisch ausgewertet, wobei festzustellen ist, dass die Anzahl der Datenpunkte je Randtreifenbreite oft sehr klein ist und stark streut. Die Ergebnisse zeigen für mobile, gelöste Wirkstoffe (n=12) einen geringeren Rückhalt als für weniger mobile, partikelgebundene Substanzen (n=11). Für eine konservative Bewertung wurde daher analog FOCUS (2007) das 90. Perzentil der gemessenen Reduktionsleistungen in EXPOSIT eingestellt (siehe Tabelle 1). Im Vergleich zum bisherigen Vorgehen in EXPOSIT werden mit der Verwendung der EU-weiten Daten die bisherigen Untersuchungsergebnisse nach Klöppel et al. (1997) auf eine breitere Datenbasis gestellt.
D47: Tabelle 1: Reduzierungsleistung von Randstreifen für die Abschätzung der Vermindung von PSM-Einträgen über die Eintragspfade Runoff bzw. Erosion | L47: Tabelle 2: Datenbasis zur Abschätzung des PSM-Rückhaltevermögens in Randstreifen je Eintragspfad aus europaweiten Untersuchungen
D48: Breite der Randstreifen | E48: Reduktion des wasser-verfügbaren PSM-Anteils und des Runoff-Volumens um | G48: Reduktion des erosionbedingten sedimentgebundenen PSM-Anteils um | L48: Breite der verwendeten Randstreifen | M48: Anzahl der Messdaten für Runoff-Einträge | O48: Anzahl der Messdaten für Erosion-Einträge
D49: 0 m | E49: 0 % | G49: 0 % | L49: Summe (1-20 m) | M49: 107 | O49: 76
D50: 5 m | E50: 40 % | G50: 40 % | L50: 5 m (4-6 m) | M50: 25 | O50: 29
D51: 10 m | E51: 60 % | G51: 85 % | L51: 10 m (10-12 m) | M51: 36 | O51: 19
D52: 20 m | E52: 80 % | G52: 95 % | L52: 20 m (15-20 m) | M52: 30 | O52: 11
L53: Anzahl Wirkstoffe | M53: 12 | O53: 11
D55: Referenz: FOCUS (2007): Final Report of the FOCUS Working Group on Landscape and Mitigation Factors in Ecological Risk Assessment (SANCO/10422/2005, version 2.0, September 2007). Reduzierungsleistungen von 5 m breiten Randstreifen basieren auf erneuter Auswertung der o.g. Datengrundlage (FOCUS L&M, 2007) durch AK Ökochemie (Unterarbeitsgruppe Runoff UBA/IVA, 2010)
B58: Ergebnis: | D58: PEC Runoff (µg/L): Anteil der Wirkstoffmenge, der über Runoff in das Gewässer gelangt (wird als wasserverfügbarer Anteil betrachtet).
D59: Für den Anteil der Wirkstoffmenge, der über Erosion eingetragen wird, wird vereinfachend angenommen, dass er ins Sediment eingebunden und nicht verfügbar ist.
D60: In Verbindung mit ökotoxikologischen Tests in Wasser-Sediment-Systemen kann die PEC Runoff nur dort für Invertebraten berücksichtigt werden, wo ein intensiver
D61: Kontakt zwischen den Testtieren und Sediment bzw. wirkstoffbeladenen Partikeln gegeben ist.
D63: PEC Gesamtaustrag (µg/L): Gesamteintrag des Wirkstoffs, der über Runoff und Erosion in das Gewässer gelangt.
D64: Im Hinblick auf Auswirkungen auf Invertebraten werden an erodierte Bodenpartikel gebundene Wirkstoffanteile als potenziell verfügbar angesehen, soweit nicht
D65: eine signifikant verringerte Verfügbarkeit und ökotoxikologische Wirksamkeit im Einzelfall belegt werden kann.

Sheet Konzept Drainage
A1: h
B2: Bewertungskonzept Drainage
B4: Schlaggröße/ | D4: 1 ha (100 m * 100 m)
B5: Applikationsfläche
B7: Zeitraum zwischen | D7: 3 d (default)
B8: Applikation und | D8: Mehrfachapplikation, Abbau im Boden wird berücksichtigt (SFO Kinetik)
B9: Regenereignis
B11: Niederschlag: | D11: ergiebiger Regen von 20 mm innerhalb von 24 h (200 m3);
D12: davon 9 mm als sog. Berechnungsregen (Starkregen von 100 L /(s x ha); 15 min Regendauer; Häufigkeit einmal pro Jahr),
B14: Drainageabfluss: | D14: Frühling/Sommer: 5 % des Niederschlages (1 mm, 10 m³)
D15: Herbst/Winter/zeitiges Frühjahr: 50 % des Niederschlages (10 mm, 100 m³)
B17: Austrag: | D17: Es wird unterschieden zwischen Gesamtabfluss und Stoßbelastung. Der Gesamtabfluss umfasst den PSM-Austrag via Dränage für alle der Applikation folgenden Niederschlagsereignisse. Die Stoßbelastung wird lediglich einem Starkregenereignis von 20 mm zugeordnet. (siehe unten Berechnung der initialen Konzentration im Graben)
B19: Gewässer: | D19: parallel zur Applikationsfläche verlaufender Graben (Breite: 100 cm; Wassertiefe: 30 cm; Volumen 30 m3; max. Aufnahmevolumen > 130 m3) Während des Niederschlagsereignisses wird ein Fließen des Grabenwassers unterstellt. Angenommen wird hier eine Verdünnung von 1 : 2.
B21: Ergebnis: | D21: PEC ini Graben (µg/L)
B23: Berechnung der initialen Konzentration im Graben (PEC ini Graben (µg/L)):
E24: Frühling/Sommer | L24: Herbst/Winter/zeitiges Frühjahr
E25: (01. April-31. Oktober) | L25: (01. November-31. März)
D27: Dränageabfluss | E27: 5 % des Niederschlages (10 m3) | L27: 50 % des Niederschlages (100 m3)
B29: Gruppe I
B30: PSM geringer Mobilität
D31: Gesamtaustrag | E31: 0,01 % vom "Rückstand zum Zeitpunkt des Niederschlagsereignisses" | H31: =0.01*Exposit!E26/100 -> 0.02653995673 | I31: g | L31: 0,05 % vom "Rückstand zum Zeitpunkt des Niederschlagsereignisses" | Q31: =0.05*Exposit!E26/100 -> 0.1326997837 | R31: g
D32: Stoßbelastung | E32: 12,5 % des Gesamtaustrags (0,00125 % der appl. Menge) | H32: =H31*12.5/100 -> 0.003317494592 | I32: g | L32: 25 % des Gesamtaustrags (0,0125 % der appl. Menge) | Q32: =Q31*25/100 -> 0.03317494592 | R32: g
D34: Grabenwasser | E34: 40 m3 (4000 L) = 30 m³ + 10 m³ Drainageabfluss | H34: =H32/0.04 -> 0.0829373648 | I34: µg/l | L34: 130 m3 (130000 L) = 30 m³+100 m³ Drainageabfluss | Q34: =Q32/0.13 -> 0.2551918917 | R34: µg/l
D35: Verdng. 1 : 2 | E35: 80 m3 (8000 L) --> PEC ini Graben (µg/L) | H35: =H34/2 -> 0.0414686824 | I35: µg/l | L35: 260 m3 (260000 L) --> PEC ini Graben (µg/L) | Q35: =Q34/2 -> 0.1275959458 | R35: µg/l
B37: Gruppe II, III u. IV
B38: PSM mäßiger bis hoher Mobilität
D39: Gesamtaustrag | E39: 0,2 % vom "Rückstand zum Zeitpunkt des Niederschlagsereignisses" | H39: =0.2*Exposit!E26/100 -> 0.5307991347 | I39: g | L39: 1 % vom "Rückstand zum Zeitpunkt des Niederschlagsereignisses" | Q39: =Exposit!E26/100 -> 2.653995673 | R39: g
D40: Stoßbelastung | E40: 12,5 % des Gesamtaustrags (0,025 % der appl. Menge) | H40: =H39*12.5/100 -> 0.06634989184 | I40: g | L40: 25 % des Gesamtaustrags (0,25 % der appl. Menge) | Q40: =Q39*25/100 -> 0.6634989184 | R40: g
D42: Grabenwasser | E42: 40 m3 (4000 L) = 30 m³ + 10 m³ Drainageabfluss | H42: =H40/0.04 -> 1.658747296 | I42: µg/l | L42: 130 m3 (130000 L) = 30 m³+100 m³ Drainageabfluss | Q42: =Q40/0.13 -> 5.103837834 | R42: µg/l
D43: Verdng. 1 : 2 | E43: 80 m3 (8000 L) --> PEC ini Graben (µg/L) | H43: =H42/2 -> 0.829373648 | I43: µg/l | L43: 260 m3 (260000 L) --> PEC ini Graben (µg/L) | Q43: =Q42/2 -> 2.551918917 | R43: µg/l

Sheet Konzept Uferfiltration
A1: ◄
B2: Bewertungskonzept Uferfiltration
B4: Initialkonzentration des Wirkstoffs im angrenzenden Graben: | E4: PEC ini Runoff / PEC ini Graben (µg/L) über Eintragspfad Run-off / Drainage
B6: Verdünnung des Grabenwassers im Fließgewässer: | E6: 1 : 12,5 Anteil des Grabenwassers am Oberflächengewässer mit Uferfiltration: 8 % Abbau im anrainenden Graben und Fließgewässer mit Uferfiltration wird nicht berücksichtigt.
B8: Ergebnis: | E8: PEC ini Fließgewässer (µg/L)
B10: Reduktion in Infiltrationsstrecke | E10: In Abhängigkeit von der Gefährdungsgruppe
B11: (Sediment, Boden, Aquifer)
E12: PSM Gruppe I | F12: 100 %
E13: PSM Gruppe II | F13: 75 %
E14: PSM Gruppe III | F14: 90 %
E15: PSM Gruppe IV | F15: 100 %
E17: In dem DVGW-Forschungsbericht „Befunde von Pflanzenschutzmittel in Grund- und Oberflächenwässern und deren Eintragspfade - Bedeutung für die Wasserwirtschaft und das Zulassungsverfahren“ (Sturm et al., 2006, DVGW-Forschungsvorhaben W 1/02/05) wird ein Vergleich der im Modell EXPOSIT enthaltenen Annahmen bezüglich der Uferfiltration (Eliminationsleistung) mit in der Datenbank zum Verhalten organischer Spurenstoffe bei der Uferfiltration (Schmidt, 2005, TZW Karlsruhe) zusammengestellten Uferfiltrationswerten (Messungen) an Fließgewässern durchgeführt. Bei einigen Wirkstoffen zeigen sich große Unterschiede zwischen Modellannahmen und Versuchsergebnissen. Für diese Wirkstoffe zeigten sich z.T. deutlich geringere Wirkstoffreduktionen als die im Modell Exposit angenommenen default-Werte. Für diese herbiziden Wirkstoffe werden geringere Eliminationsraten eingestellt (siehe Tabelle unten).
B19: Ergebnis: | E19: PEC ini Uferfiltrat (µg/L)
B21: Eliminationsrate im Uferfiltrat für ausgewählte herbizide Wirkstoffe:
E22: Nr. | F22: Wirkstoff | H22: Eliminationsrate (%)
E23: 1 | F23: 2,4 D | H23: 91.4 | J23: ausgewählt: | K23: =INDEX(F23:F37,L23) -> anderer Wirkstoff | L23: =Exposit!$C$4 -> 14
E24: 2 | F24: Bentazon | H24: 5
E25: 3 | F25: Dichlorprop | H25: 30
E26: 4 | F26: Diuron | H26: 20.3
E27: 5 | F27: Flufenacet | H27: 63
E28: 6 | F28: Glyphosat | H28: 23.5
E29: 7 | F29: Isoproturon | H29: 21.6
E30: 8 | F30: MCPA | H30: 74
E31: 9 | F31: Mecoprop | H31: 20
E32: 10 | F32: Metalaxyl-M | H32: 75
E33: 11 | F33: Metazachlor | H33: 73.6
E34: 12 | F34: S-Metolachlor | H34: 38
E35: 13 | F35: Terbuthylazin | H35: 27.5
E36: 14 | F36: anderer Wirkstoff | H36: =IF(Exposit!$C$11=2,75,IF(Exposit!$C$11=3,90,100)) -> 100 | J36: Achtung! | K36: Eingabe neuer Wirkstoffe mittels "Zeile einfügen" vor "anderer Wirkstoff",
E37: 15 | F37: andere Eliminationsrate | H37: eingeben: | K37: sonst ist der Makrobezug für alle Wirkstoffe nicht mehr gegeben.
B39: Referenz: | E39: Schmidt, C. K. (2005): Datenbank zum Verhalten organischer Spurenstoffe bei der Uferfiltration. Technologiezentrum Wasser (TZW) Karlsruhe
E40: Sturm, S.; Kiefer, J.; Eichhorn, E. (2006): Befunde von Pflanzenschutzmitteln in Grund- und Oberflächengewässern und deren Eintragspfade. Bedeutung für die Wasserwirtschaft und das Zulassungsverfahren. DVGW-Forschungsvorhaben W 1/02/05, Karlsruhe

Sheet Gefährdungsgruppe
A1: ◄
B2: Einteilung der PSM-Wirkstoffe in Gefährdungsgruppen:
B4: Gruppe | C4: Mobilität | D4: Einschätzung des Gefährdungspotentials für Grundwasser (GW)
B5: I | C5: gering | D5: Gefährdung von OFW ist möglich. Im Allgemeinen besteht aber ein geringes Risiko hinsichtlich der Einträge ins GW. Zulassung ist somit aus Sicht des GW-Schutzes im Regelfall nicht eingeschränkt.
B6: II | C6: mäßig | D6: Gefährdungspotential für OFW und GW gegeben (Risikogruppe)! Zulassung ist zum Schutz des GW in der Regel mit Anwendungs-bestimmungen zu verbinden.
B7: III | C7: ausgeprägt | D7: Gefährdung von OFW und GW ist möglich. Zulassung ist zum Schutz des GW erforderlichenfalls mit Anwendungsbestimmungen zu verbinden.
B8: IV | C8: hoch | D8: Gefährdung von OFW ist möglich. Aus der Sicht des GW-Schutzes ist das Gefährdungspotential gering (schneller Abbau im OFW). Zulassung ist im Regelfall nicht eingeschränkt.
B10: Hinweis:
B11: 1.) Wasserlöslichkeit, Abbau und Sorption erlauben im Allgemeinen eine grobe Unterteilung hinsichtlich der Versickerung (run-off, drainage) und des Verhaltens im Gewässer (bank filtration). Die Gruppenzugehörigkeit wird aber nicht in jedem Fall eindeutig sein, so dass dann ein "expert judgement" notwendig wird. Im Zweifelsfall muss also in der Zusammenschau aller Daten entschieden werden.
B12: Beispiele: | C12: [L ca. 50 mg/l; DT50 >> 100 d; Koc > 500 (bis 2009)] - Gruppe I
C13: [L >> 100 mg/l; DT50 > 21 d; Koc < 500 (251)] - Gruppe III
B14: 2.) Die Einordnung eines Wirkstoffs in eine Gefährdungsgruppe hat erstens Einfluss auf die PEC ini im Uferfiltrat, da mit der Festlegung der Gefährdungsgruppen die Reduktion in der Infiltrationsstrecke während der Uferfiltration festgelegt wird (siehe Arbeitsblatt "Uferfiltration"). Zweitens bestimmt die Einordnung in eine Gefährdungsgruppe die PEC ini im Graben für den Eintragspfad Drainage. Für Wirkstoffe der Gruppe I sind die Einträge in das Grabenwasser über Drainage geringer als für Wirkstoffe der anderen Gefährdungsgruppen (siehe Arbeitsblatt "Drainage").

Sheet Berechnung
A1: ◄
D2: Runoff und Erosion
C3: Randstreifen (m)
C4: Reduktion Runoffaustrag (%)
C5: Reduktion Erosionsaustrag (%)
C6: Austrag Wasser (m3) | D6: =100 x (1-"Reduktion Runoffaustrag (%)")
C7: Grabenwasser (m3) | D7: ="Austrag Wasser" +30
C8: VerdünnungGraben (m3) | D8: ="Grabenwasser" x 2
C10: Rückstand zum Zeitpunkt des Niederschlagsereignisses (g a.i./ha) | D10: =("AWM a.i." x ((100-"Interzeption(%)")/100) x EXP(-(LN(2)/DT50) x "Niederschlag nach 3 d")
C12: Runoff (mg) | D12: ="Rückstand zum Zeitpunkt des Niederschlagsereignisses" x "Austrag in (%) der AWM über Runoff" /100 x 1000 x (1-"Reduktion Runoffaustrag (%)"/100) x 1 ha
C15: Erosion (mg) | D15: ="Rückstand zum Zeitpunkt des Niederschlagsereignisses" x "Austrag in (%) der AWM über Runoff"/100 x 1000 x (1-"Reduktion Erosionsaustrag (%)"/100) x 1 ha
I16: Drainage
B18: Grundwasser | C18: PEC ini Runoff (µg/L) | D18: ="Runoff" / "VerdünnungGraben" | I18: PEC ini Graben (µg/L) | J18: siehe Konzept Drainage
C20: PEC ini Fließgewässer (µg/L) | D20: =PEC ini Runoff / 12.5 | I20: PEC ini Fließgewässer (µg/L) | J20: =PEC ini Graben / 12.5
C22: PEC ini Uferfiltrat (µg/L) | D22: =PEC ini Fließgewässer*(100-"Eliminationsrate (%)")/100 | I22: PEC ini Uferfiltrat (µg/L) | J22: =PEC ini Fließgewässer*(100-"Eliminationsrate (%)")/100
B24: Aquatische Biozönose | C24: PEC ini Runoff (µg/L) | D24: ="Runoff" / "VerdünnungGraben" | I24: PEC ini Graben (µg/l) | J24: siehe Konzept Drainage
C26: TER Graben | D26: ="Ökotoxikologischer Endpunkt der aquatischen Spezies" / PEC ini Runoff | I26: TER Graben | J26: ="Ökotoxikologischer Endpunkt der aquatischen Spezies" / PEC ini Graben
C28: PEC ini Gesamtaustrag (µg/L) | D28: = ("Runoff" + "Erosion")/ "VerdünnungGraben"
C30: TER Graben | D30: ="Ökotoxikologischer Endpunkt der aquatischen Spezies" / PEC ini Gesamtaustrag

Sheet Mehrfachapplikation
A1: ◄ | C1: Auswahl: | E1: =Exposit!$J$2 -> 1
B2: 1 | C2: Einfachapplikation
B3: 2 | C3: Mehrfachapplikation
B5: Anzahl Anwendungen (1-10) | C5: =Exposit!O2 -> 4
B6: Intervall [d] | C6: =Exposit!O3 -> 14
B7: DT50 [d] | C7: =Exposit!C9 -> 121
B9: Berechnung der Anfangs- und Endkonzentration für jede Einzelanwendung:
B10: #(Einzelanwendung) | C10: 1 | D10: 2 | E10: 3 | F10: 4 | G10: 5 | H10: 6 | I10: 7 | J10: 8 | K10: 9 | L10: 10
B11: Interzeption [%] | C11: =IF($C$5+1-C10>0,Exposit!R5,"") -> 50 | D11: =IF($C$5+1-D10>0,Exposit!S5,"") -> 70 | E11: =IF($C$5+1-E10>0,Exposit!T5,"") -> 70 | F11: =IF($C$5+1-F10>0,Exposit!U5,"") -> 90 | G11: =IF($C$5+1-G10>0,Exposit!V5,"") ->  | H11: =IF($C$5+1-H10>0,Exposit!W5,"") ->  | I11: =IF($C$5+1-I10>0,Exposit!X5,"") ->  | J11: =IF($C$5+1-J10>0,Exposit!Y5,"") ->  | K11: =IF($C$5+1-K10>0,Exposit!Z5,"") ->  | L11: =IF($C$5+1-L10>0,Exposit!AA5,"") -> 
B12: Anwendungskonz. [g/ha] | C12: =IF($C$5+1-C10>0,Exposit!R4,"") -> 500 | D12: =IF($C$5+1-D10>0,Exposit!S4,"") -> 500 | E12: =IF($C$5+1-E10>0,Exposit!T4,"") -> 500 | F12: =IF($C$5+1-F10>0,Exposit!U4,"") -> 500 | G12: =IF($C$5+1-G10>0,Exposit!V4,"") ->  | H12: =IF($C$5+1-H10>0,Exposit!W4,"") ->  | I12: =IF($C$5+1-I10>0,Exposit!X4,"") ->  | J12: =IF($C$5+1-J10>0,Exposit!Y4,"") ->  | K12: =IF($C$5+1-K10>0,Exposit!Z4,"") ->  | L12: =IF($C$5+1-L10>0,Exposit!AA4,"") -> 
B13: Interzeption berücksichtigt [g/ha] | C13: =IF($C$5+1-C10>0,C12*(100-(C11))/100,"") -> 250 | D13: 150 | E13: 150 | F13: 50
B14: Anfang Intervall [d] | C14: =IF(C13="","",0) -> 0 | D14: =IF(D13="","",C14+$C$6) -> 14 | E14: =IF(E13="","",D14+$C$6) -> 28 | F14: 42
B15: Ende Intervall [d] | C15: =IF(D13="","",$C$6) -> 14 | D15: =IF(D13="","",C15+$C$6) -> 28 | E15: =IF(E13="","",D15+$C$6) -> 42 | F15: 56
B16: c(i) Anfang | C16: =IF(C13="","",C13) -> 250 | D16: =IF(D13="","",D13+C17) -> 380.7332014 | E16: =IF(E13="","",E13+D17) -> 501.3911616 | F16: 512.7503514
B17: c(i) Ende | C17: =IF(C13="","",C16*EXP(-(LN(2)/$C$7)*$C$6)) -> 230.7332014 | D17: 351.3911616 | E17: 462.7503514 | F17: 473.2341203

Sheet Versionskontrolle
A1: Exposit 3.01
A3: Versionskontrolle
B4: letzte Änderung vom | C4: Inhalt der Änderung
A5: Exposit 3.01 | B5: 2013-03-05 | C5: löst Exposit Version 3.0 beta ab, veröffentlicht auf BVL Internetseite am 18.03.2014
B6: 2015-03-04 | C6: Redaktionelle Änderung:
C7: Arbeitsblatt "Übersicht" Zelle G61und G62: Letzter Satz "Bei Wirkstoffen mit einem Koc > 50000 …" ergänzt.
C8: Arbeitsblatt"Konzept Runoff": Ergänzungen in Zeile 58 bis Zeile 65
B9: 2017-02-02 | C9: UBA intern
C10: Erweiterung Blatt "Report" für die Übertragung von Ergebnissen in Tabellenmuster der dRR-Vorlagen
C11: keine Veröffentlichung BVL
B12: 2017-05-29 | C12: UBA intern
C13: Erweiterung Blatt "90.Perz" für die Berechnung des 90. Perzentils bei Labor-DT50
C14: keine Veröffentlichung BVL
A15: Exposit 3.02 | B15: 2017-12-14 | C15: Koc Gefährdungsklasse und Koc Runoff zusammengefasst, da EU Endpunkte verwendet werden sollen.
C16: Entsprechende Änderungen in "Übersicht" und "Exposit" vorgenommen, Verweis auf Input Decision gelöscht
C17: veröffentlicht auf BVL Internetseite im Januar 2018
